bitfinex/quotes_SOLUSD_20260309
["timestamp","ask_amount","ask_price","bid_price","bid_amount"]
[1773050725241,1.2162006,84.117,84.083,41.62553666]
[1773050725630,1.2162006,84.109,84.083,41.62553666]
[1773050726045,1.2162006,84.119,84.09,11.62957238]
[1773050726237,1.2162006,84.119,84.091,1.23682701]
[1773050726960,1.2162006,84.126,84.101,1.23682701]
[1773050727155,1.2162006,84.126,84.092,1.23682701]
[1773050727340,1.2162006,84.126,84.093,41.62058672]
[1773050727535,1.2162006,84.124,84.093,41.62058672]
[1773050727856,1.2162006,84.124,84.094,1.23682701]
[1773050728437,1.2162006,84.109,84.083,11.89301047]
[1773050729739,1.2162006,84.109,84.083,41.62553666]
[1773050730349,1.2162006,84.107,84.083,11.89301047]
[1773050731434,1.2162006,84.107,84.08,0.1]
[1773050731638,1.2162006,84.098,84.08,0.1]
[1773050732549,1.2162006,84.11,84.083,11.89301047]
[1773050732744,1.2162006,84.118,84.09,11.62957238]
[1773050733456,1.15831423,84.117,84.084,1.23682701]
[1773050734243,1.15831423,84.117,84.085,42.7635311]
[1773050734644,1.15831423,84.117,84.09,11.62957238]
[1773050735442,1.15831423,84.115,84.09,11.62957238]
[1773050736441,1.15831423,84.115,84.085,42.7635311]
[1773050736636,1.15831423,84.115,84.091,1.13898452]
[1773050737762,11.88768592,84.121,84.091,1.13898452]
[1773050737966,1.15831423,84.12,84.091,1.13898452]
[1773050738564,1.15831423,84.118,84.092,11.89173762]
[1773050739062,1.44263737,84.118,84.083,11.89301047]
[1773050739248,1.15831423,84.109,84.083,11.89301047]
[1773050740266,1.15831423,84.099,84.06,11.72957238]
[1773050740671,1.15831423,84.089,84.06,0.1]
[1773050740964,11.62957238,84.08,84.06,0.1]
[1773050741465,1.15831423,84.079,84.06,0.1]
[1773050742160,1.15831423,84.089,84.061,1.13898452]
[1773050742548,1.15831423,84.089,84.06,41.73685774]
[1773050743343,1.15831423,84.089,84.06,41.47023381]
[1773050743764,11.62957238,84.11,84.071,1.13898452]
[1773050744063,0.28432314,84.109,84.071,1.13898452]
[1773050744265,11.62957238,84.11,84.08,12.7685569]
[1773050744457,0.28432314,84.109,84.08,12.7685569]
[1773050744868,0.28432314,84.109,84.081,1.13898452]
[1773050745366,11.88947543,84.108,84.082,11.89315192]
[1773050745869,13.04778966,84.108,84.082,11.89315192]
[1773050746069,1.15831423,84.107,84.082,11.89315192]
[1773050746972,29.72047721,84.118,84.082,11.89315192]
[1773050746973,13.04651756,84.117,84.083,1.13898452]
[1773050747264,1.15831423,84.116,84.083,1.13898452]
[1773050747461,1.15831423,84.114,84.084,11.89286903]
[1773050747845,1.14186231,84.123,84.091,1.19501996]
[1773050748050,1.42618545,84.128,84.101,1.19501996]
[1773050748259,1.14186231,84.128,84.101,1.19501996]
[1773050748465,1.42618545,84.128,84.101,1.19501996]
[1773050748661,1.14186231,84.135,84.111,1.19501996]
[1773050749048,1.14186231,84.147,84.111,1.19501996]
[1773050749346,11.88327817,84.152,84.121,1.19501996]
[1773050749567,1.14186231,84.149,84.116,11.88834466]
[1773050749770,1.14186231,84.149,84.116,41.60920632]
[1773050750062,1.14186231,84.149,84.121,1.19501996]
[1773050750267,1.14186231,84.149,84.12,11.62957238]
[1773050751574,1.14186231,84.156,84.13,12.82459234]
[1773050751948,1.14186231,84.149,84.121,11.88763804]
[1773050752348,1.42618545,84.149,84.112,11.88891002]
[1773050752553,1.14186231,84.139,84.112,11.88891002]
[1773050753456,1.14186231,84.139,84.114,11.88862733]
[1773050753864,1.14186231,84.138,84.114,11.88862733]
[1773050756278,1.14186231,84.136,84.11,11.62957238]
[1773050758082,1.14186231,84.136,84.102,11.89028726]
[1773050758262,1.14186231,84.127,84.102,11.89028726]
[1773050758879,1.14186231,84.127,84.095,11.89122588]
[1773050759073,1.14186231,84.119,84.083,29.73252266]
[1773050759374,1.14186231,84.109,84.086,1.19501996]
[1773050760365,1.14186231,84.116,84.09,11.62957238]
[1773050760570,1.14186231,84.116,84.091,1.19501996]
[1773050760963,1.14186231,84.136,84.101,1.19501996]
[1773050761164,1.42618545,84.134,84.101,1.19501996]
[1773050761776,1.42618545,84.129,84.101,1.19501996]
[1773050762577,1.14186231,84.127,84.094,1.19501996]
[1773050762971,1.14186231,84.127,84.091,13.03234798]
[1773050763179,1.14186231,84.127,84.092,1.14046895]
[1773050763375,1.53650817,84.119,84.084,1.14046895]
[1773050763675,1.53650817,84.119,84.085,11.89272759]
[1773050766985,1.25218503,84.117,84.081,1.14046895]
[1773050768366,1.25218503,84.117,84.091,1.14046895]
[1773050768566,1.25218503,84.117,84.081,1.14046895]
[1773050769686,1.25218503,84.115,84.083,1.14046895]
[1773050771981,13.14081236,84.114,84.09,11.62957238]
[1773050772185,1.25218503,84.113,84.09,11.62957238]
[1773050772388,1.25218503,84.113,84.089,1.14046895]
[1773050773406,1.25218503,84.113,84.09,11.62957238]
[1773050773585,1.25218503,84.113,84.09,12.77004133]
[1773050774494,1.25218503,84.111,84.086,11.89247326]
[1773050774667,1.25218503,84.111,84.09,11.62957238]
[1773050774980,1.25218503,84.111,84.091,1.14046895]
[1773050778380,1.25218503,84.109,84.089,11.89210972]
[1773050779691,1.25218503,84.107,84.085,11.89272759]
[1773050779884,1.25218503,84.107,84.086,1.14046895]
[1773050780497,1.25218503,84.107,84.085,11.89272759]
[1773050781370,1.25218503,84.107,84.081,11.89329337]
[1773050781575,11.88975816,84.106,84.081,13.03376232]
[1773050781893,1.25218503,84.105,84.081,13.03376232]
[1773050782088,1.25218503,84.105,84.076,11.89393317]
[1773050782399,1.25218503,84.099,84.076,11.89393317]
[1773050783196,1.25218503,84.099,84.076,13.03440212]
[1773050783895,1.25218503,84.098,84.077,1.14046895]
[1773050784198,1.53650817,84.119,84.091,1.14046895]
[1773050784670,59.42337108,84.142,84.076,11.89393317]
[1773050784671,1.25218503,84.148,84.111,1.14046895]
[1773050784870,1.25218503,84.144,84.111,1.14046895]
[1773050785271,1.25218503,84.144,84.076,199.9447775]
[1773050785272,1.25218503,84.129,84.095,1.14046895]
[1773050785806,1.25218503,84.129,84.102,11.89032365]
[1773050786094,1.25218503,84.129,84.103,1.14046895]
[1773050787891,1.25218503,84.129,84.104,11.8900409]
[1773050788111,1.25218503,84.127,84.104,11.8900409]
[1773050788472,1.25218503,84.127,84.104,13.03050985]
[1773050789089,1.25218503,84.127,84.105,1.14046895]
[1773050789803,1.25218503,84.127,84.106,11.88975816]
[1773050790315,1.25218503,84.127,84.106,13.03022711]
[1773050791282,11.88534321,84.138,84.111,1.14046895]
[1773050791499,1.25218503,84.137,84.111,1.14046895]
[1773050792095,1.25218503,84.137,84.112,11.88891002]
[1773050792297,1.25218503,84.135,84.112,11.88891002]
[1773050793606,1.25218503,84.135,84.112,13.0201738]
[1773050793899,1.25218503,84.135,84.112,11.88891002]
[1773050794305,1.13519683,84.129,84.097,11.89103059]
[1773050794488,1.13519683,84.129,84.101,1.13126378]
[1773050794693,11.88544595,84.137,84.111,1.13126378]
[1773050794893,13.02064278,84.137,84.111,1.13126378]
[1773050795094,1.13519683,84.136,84.111,1.13126378]
[1773050796705,1.13519683,84.136,84.113,1.13126378]
[1773050797292,13.02085678,84.135,84.113,1.13126378]
[1773050797803,1.13519683,84.134,84.113,1.13126378]
[1773050798809,1.13519683,84.134,84.114,11.88862733]
[1773050799106,1.13519683,84.134,84.1,4.34563013]
[1773050799107,1.13519683,84.133,84.1,4.34563013]
[1773050799306,1.13519683,84.129,84.097,29.72725003]
[1773050799503,1.13519683,84.129,84.098,1.13126378]
[1773050799696,1.13519683,84.129,84.102,1.13126378]
[1773050800912,11.88569406,84.135,84.104,1.13126378]
[1773050801607,1.13519683,84.134,84.104,1.13126378]
[1773050802510,1.13519683,84.148,84.121,1.13126378]
[1773050802713,4.34563013,84.18,84.141,1.13126378]
[1773050802896,4.34563013,84.19,84.153,1.13126378]
[1773050803212,5.10909883,84.189,84.153,1.13126378]
[1773050803505,4.34563013,84.19,84.153,1.13126378]
[1773050803700,16.70168341,84.197,84.161,1.13126378]
[1773050803885,11.87690772,84.197,84.161,1.13126378]
[1773050804290,4.34563013,84.19,84.161,1.13126378]
[1773050804701,0.28432314,84.179,84.147,11.88392716]
[1773050804907,1.13519683,84.177,84.148,1.13126378]
[1773050805096,1.13519683,84.175,84.15,1.13126378]
[1773050805303,29.69546049,84.188,84.151,1.13126378]
[1773050805304,11.87902401,84.182,84.151,1.13126378]
[1773050805521,1.13519683,84.191,84.161,1.13126378]
[1773050805719,0.2,84.2,84.182,1.13126378]
[1773050805896,0.2,84.2,84.15,1.13126378]
[1773050805897,1.13519683,84.199,84.15,1.13126378]
[1773050806096,1.13519683,84.199,84.161,1.13126378]
[1773050806594,5.48082696,84.19,84.161,1.13126378]
[1773050806796,4.34563013,84.19,84.161,1.13126378]
[1773050806990,11.87817741,84.188,84.161,1.13126378]
[1773050807217,11.87817741,84.188,84.151,11.88327313]
[1773050807218,1.1650644,84.179,84.151,11.88327313]
[1773050807422,1.1650644,84.169,84.143,1.12696932]
[1773050807717,1.1650644,84.169,84.132,1.12696932]
[1773050808426,4.34563013,84.16,84.132,1.12696932]
[1773050808812,1.44938754,84.169,84.132,1.12696932]
[1773050809122,11.8809999,84.168,84.133,11.88594249]
[1773050809320,11.8809999,84.168,84.134,1.12696932]
[1773050809499,11.8809999,84.168,84.141,1.12696932]
[1773050810214,4.34563013,84.17,84.141,1.12696932]
[1773050810418,11.88003068,84.175,84.151,1.12696932]
[1773050811513,13.04509508,84.175,84.151,1.12696932]
[1773050812318,1.1650644,84.175,84.152,13.01022818]
[1773050812720,1.1650644,84.178,84.153,1.12696932]
[1773050813216,11.87956186,84.179,84.153,1.12696932]
[1773050813423,11.87956186,84.179,84.155,1.12696932]
[1773050813619,11.8788829,84.183,84.161,1.12696932]
[1773050814204,1.1650644,84.169,84.135,1.12696932]
[1773050814510,1.1650644,84.177,84.14,4.34563013]
[1773050814702,1.1650644,84.177,84.141,1.12696932]
[1773050814900,4.34563013,84.17,84.141,1.12696932]
[1773050815100,1.1650644,84.169,84.141,1.12696932]
[1773050815326,4.34563013,84.15,84.115,1.12696932]
[1773050815526,4.34563013,84.15,84.118,1.12696932]
[1773050815707,1.1650644,84.149,84.118,1.12696932]
[1773050815909,13.04880084,84.149,84.118,1.12696932]
[1773050816108,1.1650644,84.148,84.118,1.12696932]
[1773050817137,1.1650644,84.156,84.12,1.12696932]
[1773050817301,1.1650644,84.149,84.12,1.12696932]
[1773050817506,4.34563013,84.14,84.12,1.12696932]
[1773050817916,4.34563013,84.14,84.119,11.88792068]
[1773050818327,4.34563013,84.14,84.113,11.88876868]
[1773050818530,4.34563013,84.14,84.114,1.12696932]
[1773050818736,1.1650644,84.139,84.113,11.88876868]
[1773050819028,4.34563013,84.13,84.113,11.88876868]
[1773050819921,4.34563013,84.13,84.108,11.88946571]
[1773050820327,1.1650644,84.147,84.111,1.12696932]
[1773050821229,1.1650644,84.129,84.103,1.12696932]
[1773050821428,1.1650644,84.129,84.095,1.12696932]
[1773050821429,1.44938754,84.129,84.095,1.12696932]
[1773050821607,1.1650644,84.129,84.103,1.12696932]
[1773050822432,1.1650644,84.129,84.101,1e-08]
[1773050822433,1.1650644,84.109,84.101,1e-08]
[1773050824324,1.20622869,84.107,84.073,1.13865198]
[1773050825133,4.34563013,84.1,84.073,1.13865198]
[1773050825436,1.20622869,84.107,84.073,1.13865198]
[1773050825824,4.34563013,84.1,84.073,1.13865198]
[1773050827024,11.8907478,84.099,84.074,11.8942836]
[1773050827332,11.8907478,84.099,84.075,1.13865198]
[1773050827719,13.09697649,84.099,84.075,1.13865198]
[1773050828438,1.20622869,84.115,84.075,1.13865198]
[1773050828620,1.20622869,84.109,84.075,1.13865198]
[1773050829022,11.88947543,84.108,84.077,1.13865198]
[1773050829247,13.09570412,84.108,84.077,1.13865198]
[1773050829422,1.20622869,84.107,84.077,1.13865198]
[1773050830844,5.55185882,84.1,84.077,1.13865198]
[1773050831023,11.8907478,84.099,84.077,1.13865198]
[1773050831224,11.8907478,84.099,84.078,11.89371773]
[1773050831739,1.20622869,84.1,84.078,11.89371773]
[1773050833043,11.8907478,84.099,84.078,11.89371773]
[1773050833337,13.09697649,84.099,84.078,11.89371773]
[1773050833642,1.20622869,84.098,84.074,11.89425405]
[1773050833828,1.20622869,84.098,84.074,13.03290603]
[1773050834229,11.8902418,84.103,84.075,1.13865198]
[1773050834425,1.20622869,84.099,84.074,11.89425405]
[1773050834631,4.34563013,84.08,84.06,13.13482573]
[1773050835020,11.8923033,84.088,84.06,13.13482573]
[1773050835242,4.82477569,84.104,84.06,13.13482573]
[1773050835243,1.20622869,84.098,84.071,1.13865198]
[1773050835448,0.28432314,84.099,84.071,1.13865198]
[1773050835948,1.20622869,84.118,84.081,1.13865198]
[1773050836125,5.55185882,84.11,84.081,1.13865198]
[1773050836448,1.49055183,84.099,84.07,5.48428211]
[1773050836744,1.49055183,84.099,84.07,1.13865198]
[1773050837334,1.49055183,84.099,84.071,11.89470804]
[1773050837533,11.8908892,84.098,84.072,1.13865198]
[1773050838130,1.20622869,84.089,84.067,11.89522784]
[1773050838725,1.20622869,84.089,84.06,4.44563013]
[1773050838726,4.34563013,84.08,84.06,0.1]
[1773050838940,5.55185882,84.08,84.061,11.89612305]
[1773050839137,1.49055183,84.089,84.062,1.13865198]
[1773050839336,0.28432314,84.089,84.064,1.13865198]
[1773050840449,11.89131339,84.095,84.064,1.13865198]
[1773050840973,1.20622869,84.108,84.08,4.34802439]
[1773050841132,1.20622869,84.107,84.073,1.13865198]
[1773050841331,11.88820333,84.117,84.083,1.13865198]
[1773050841648,11.88820333,84.117,84.091,1.13865198]
[1773050841831,4.34802439,84.13,84.101,1.13865198]
[1773050842136,47.51439123,84.186,84.101,1.13865198]
[1773050842137,4.34802439,84.14,84.101,1.13865198]
[1773050842328,11.8845299,84.143,84.111,1.13865198]
[1773050842728,4.34802439,84.14,84.111,1.13865198]
[1773050843140,11.8845299,84.143,84.111,1.13865198]
[1773050843344,11.8850949,84.139,84.112,11.88891002]
[1773050843534,13.09132359,84.139,84.112,11.88891002]
[1773050843738,0.28432314,84.138,84.111,1.13865198]
[1773050844149,1.20622869,84.137,84.111,1.13865198]
[1773050844632,1.20622869,84.129,84.107,11.88953711]
[1773050845345,1.20622869,84.129,84.07,47.57890029]
[1773050845346,12.17224382,84.119,84.085,1.13865198]
[1773050845538,4.34802439,84.11,84.086,11.89258616]
[1773050845938,13.37847251,84.119,84.087,1.13865198]
[1773050848727,1.20622869,84.109,84.088,11.8923033]
[1773050849643,4.34802439,84.11,84.088,11.8923033]
[1773050849841,1.20622869,84.117,84.089,1.13865198]
[1773050850051,12.17224382,84.119,84.089,1.13865198]
[1773050850238,12.17224382,84.119,84.09,4.34802439]
[1773050850444,11.88723856,84.124,84.091,1.13865198]
[1773050850648,1.20622869,84.119,84.092,13.0303896]
[1773050850952,1.20622869,84.119,84.093,1.13865198]
[1773050852945,1.20622869,84.119,84.03,47.60194108]
[1773050852946,1.16224869,84.117,84.085,1.11846906]
[1773050853954,1.16224869,84.117,84.087,1.11846906]
[1773050855244,11.88834466,84.116,84.089,1.11846906]
[1773050855444,0.28432314,84.119,84.089,1.11846906]
[1773050855652,11.88725507,84.124,84.091,1.11846906]
[1773050855981,11.88725507,84.124,84.101,1.11846906]
[1773050856751,0.28432314,84.129,84.101,1.11846906]
[1773050856963,11.88438866,84.144,84.111,1.11846906]
[1773050857250,4.34802439,84.14,84.113,1.11846906]
[1773050857461,1.16224869,84.139,84.112,11.88891002]
[1773050859453,1.16224869,84.129,84.098,11.8908892]
[1773050859656,1.16224869,84.109,84.079,1.11846906]
[1773050860660,4.34802439,84.11,84.081,1.11846906]
[1773050861847,11.88820333,84.117,84.083,1.11846906]
[1773050863236,4.34802439,84.11,84.083,1.11846906]
[1773050864439,4.34802439,84.11,84.084,11.89286903]
[1773050864645,1.16224869,84.109,84.084,11.89286903]
[1773050864960,13.05158276,84.109,84.084,11.89286903]
[1773050865262,1.16224869,84.108,84.084,11.89286903]
[1773050867060,11.88933407,84.109,84.084,1.1517389]
[1773050867364,0.28432314,84.119,84.084,1.1517389]
[1773050868266,12.99402239,84.118,84.086,1.1517389]
[1773050868661,1.10583715,84.117,84.086,1.1517389]
[1773050869048,1.10583715,84.109,84.085,11.89272759]
[1773050869245,1.39016029,84.108,84.085,11.89272759]
[1773050869641,1.10583715,84.099,84.08,11.89332759]
[1773050869842,0.28432314,84.108,84.08,13.04506649]
[1773050869843,1.10583715,84.107,84.08,13.04506649]
[1773050870049,1.10583715,84.107,84.081,1.1517389]
[1773050870448,11.88975816,84.106,84.082,11.89315192]
[1773050871059,11.88975816,84.106,84.082,13.04489082]
[1773050871449,11.88975816,84.106,84.083,1.1517389]
[1773050872873,11.88975816,84.106,84.084,11.89286903]
[1773050873250,11.88975816,84.106,84.084,13.04460793]
[1773050874967,4.34802439,84.1,84.08,11.89337067]
[1773050875656,1.10583715,84.105,84.081,1.1517389]
[1773050876665,0.28432314,84.109,84.081,1.1517389]
[1773050876865,11.88947543,84.108,84.081,1.1517389]
[1773050877457,1.10583715,84.107,84.082,11.89315192]
[1773050877674,1.10583715,84.107,84.083,1.1517389]
[1773050878049,11.88947543,84.108,84.083,1.1517389]
[1773050878865,4.34802439,84.11,84.083,1.1517389]
[1773050879070,0.28432314,84.119,84.083,1.1517389]
[1773050879371,4.34802439,84.12,84.083,1.1517389]
[1773050879573,12.17224382,84.119,84.085,1.1517389]
[1773050880073,4.34802439,84.11,84.084,11.89286903]
[1773050880271,1.10583715,84.109,84.084,11.89286903]
[1773050880572,1.10583715,84.109,84.085,1.1517389]
[1773050881072,1.10583715,84.116,84.085,1.1517389]
[1773050881376,11.88662589,84.129,84.091,1.1517389]
[1773050881571,0.28432314,84.128,84.091,1.1517389]
[1773050882360,1.10583715,84.099,84.076,11.89400066]
[1773050883174,1.10583715,84.099,84.064,9.93928717]
[1773050883175,1.12109529,84.088,84.064,9.93928717]
[1773050883362,4.34802439,84.07,84.046,1.20286085]
[1773050883564,1.12109529,84.059,84.028,1.20286085]
[1773050883870,4.34802439,84.05,84.028,13.10364512]
[1773050884961,4.34802439,84.04,84.028,11.90078427]
[1773050885167,4.34802439,84.04,84.024,11.90127077]
[1773050885570,4.34802439,84.03,84.013,11.90291978]
[1773050886464,4.34802439,84.03,84.01,0.1]
[1773050886866,4.34802439,84.03,84.01,1.30286085]
[1773050887184,4.34802439,84.04,84.01,1.30286085]
[1773050888264,11.89923725,84.039,84.01,1.30286085]
[1773050888664,4.34802439,84.04,84.012,1.20286085]
[1773050889185,4.34802439,84.06,84.021,1.20286085]
[1773050889382,0.28432314,84.058,84.021,1.20286085]
[1773050890371,11.895285,84.067,84.04,11.65461574]
[1773050890578,11.65461574,84.07,84.041,1.20286085]
[1773050890880,11.65461574,84.07,84.043,1.20286085]
[1773050891086,23.54949844,84.07,84.043,1.20286085]
[1773050891279,11.89547602,84.066,84.043,1.20286085]
[1773050891478,11.89594138,84.063,84.043,1.20286085]
[1773050891660,11.65461574,84.05,84.027,1.20286085]
[1773050891984,1.12109529,84.049,84.023,11.90146045]
[1773050894280,13.01905835,84.048,84.023,11.90146045]
[1773050895187,1.12109529,84.048,84.023,11.90146045]
[1773050895381,1.12109529,84.056,84.024,1.20286085]
[1773050895582,1.87255547,84.059,84.041,1.20286085]
[1773050897100,13.01764291,84.058,84.031,1.20286085]
[1773050897389,1.12109529,84.057,84.031,1.20286085]
[1773050898389,1.12109529,84.049,84.025,11.90109039]
[1773050898889,1.12109529,84.049,84.022,1.20286085]
[1773050899091,1.12109529,84.029,84.01,0.1]
[1773050899389,1.12109529,84.018,83.989,29.76550638]
[1773050899692,1.12109529,83.999,83.98,0.1]
[1773050900082,11.65461574,83.99,83.98,0.1]
[1773050900676,1.12109529,83.999,83.98,0.1]
[1773050900877,11.65461574,83.99,83.98,0.1]
[1773050901202,11.65461574,83.99,83.97,1.30286085]
[1773050901371,11.65461574,83.98,83.97,0.1]
[1773050901577,11.67607113,83.98,83.97,0.1]
[1773050902498,1.11847364,83.977,83.95,0.1]
[1773050902795,12.79454477,83.97,83.95,0.1]
[1773050903107,1.11847364,83.969,83.95,0.1]
[1773050903277,12.69471423,83.96,83.93,0.1]
[1773050903471,11.67607113,83.95,83.93,0.1]
[1773050903788,11.67607113,83.94,83.913,1.20286085]
[1773050904570,11.67607113,83.95,83.913,1.20286085]
[1773050904792,0.28432314,83.949,83.913,1.20286085]
[1773050905380,0.28432314,83.949,83.915,1.20286085]
[1773050905682,17.30253108,83.954,83.915,1.20286085]
[1773050905881,11.91142663,83.953,83.921,1.20286085]
[1773050906084,11.67607113,83.95,83.921,1.20286085]
[1773050906380,12.59540159,83.94,83.914,11.9169626]
[1773050906791,1.2036536,83.939,83.91,0.1]
[1773050907488,11.67607113,83.95,83.911,1.20286085]
[1773050907794,0.28432314,83.949,83.911,1.20286085]
[1773050907988,11.67607113,83.94,83.911,1.20286085]
[1773050908294,0.28432314,83.949,83.911,1.20286085]
[1773050909078,13.84202487,83.97,83.941,1.20286085]
[1773050909289,13.84202487,83.97,83.939,1.20286085]
[1773050909290,25.518096,83.97,83.939,1.20286085]
[1773050909491,11.90915695,83.969,83.941,1.20286085]
[1773050909696,13.84202487,83.97,83.941,1.20286085]
[1773050909999,13.84202487,83.97,83.94,53.37252097]
[1773050910000,5.706765,83.97,83.951,1.20286085]
[1773050910296,3.75968128,83.97,83.951,1.20286085]
[1773050910487,1.12109529,83.969,83.94,11.91327138]
[1773050910688,1.12109529,83.959,83.929,29.78686754]
[1773050911099,1.12109529,83.959,83.929,30.98972839]
[1773050911301,1.12109529,83.959,83.932,1.20286085]
[1773050911674,14.94898148,83.97,83.941,1.20286085]
[1773050911877,3.27291035,83.97,83.941,1.20286085]
[1773050912273,3.27291035,83.97,83.951,1.20286085]
[1773050912493,3.27291035,83.97,83.942,1.20286085]
[1773050913394,1.12925244,83.959,83.933,11.91426494]
[1773050914101,1.12925244,83.959,83.925,1.12593538]
[1773050914283,1.12925244,83.967,83.931,1.12593538]
[1773050915675,14.94898148,83.97,83.941,1.12593538]
[1773050915878,3.27291035,83.97,83.941,1.12593538]
[1773050916494,1.12925244,83.968,83.933,1.12593538]
[1773050918298,1.12925244,83.968,83.94,11.67607113]
[1773050918478,1.12925244,83.968,83.935,1.12593538]
[1773050918682,3.27291035,83.97,83.941,1.12593538]
[1773050919098,1.12925244,83.976,83.95,11.67607113]
[1773050919302,1.12925244,83.988,83.951,1.12593538]
[1773050919605,11.67607113,83.98,83.951,1.12593538]
[1773050920588,23.58375533,83.98,83.952,11.91156851]
[1773050920784,1.12925244,83.979,83.953,1.12593538]
[1773050921103,11.67607113,83.98,83.953,1.12593538]
[1773050921887,1.12925244,83.987,83.96,11.67607113]
[1773050922204,1.12925244,83.987,83.96,12.80200651]
[1773050922406,1.12925244,83.987,83.961,1.12593538]
[1773050922605,1.12925244,83.987,83.962,11.91014982]
[1773050923109,1.12925244,83.979,83.954,11.91128475]
[1773050924687,11.67607113,83.99,83.961,1.12593538]
[1773050924888,1.12925244,83.992,83.961,1.12593538]
[1773050925302,11.67607113,83.99,83.961,1.12593538]
[1773050925609,0.28432314,83.999,83.961,1.12593538]
[1773050925804,11.90504535,83.998,83.961,1.12593538]
[1773050926104,11.67607113,83.99,83.961,1.12593538]
[1773050926288,1.12925244,83.989,83.956,41.6885035]
[1773050926489,1.12925244,83.979,83.951,11.9117104]
[1773050926689,1.12925244,83.977,83.951,11.9117104]
[1773050928508,1.12925244,83.986,83.952,1.12593538]
[1773050928706,1.12925244,83.986,83.954,1.12593538]
[1773050928707,11.90688813,83.985,83.954,1.12593538]
[1773050929020,1.12925244,83.979,83.953,11.91142663]
[1773050929194,1.11865296,83.987,83.96,11.67607113]
[1773050929512,1.11865296,83.987,83.954,1.17547186]
[1773050930089,0.28432314,83.989,83.953,41.6899932]
[1773050930090,1.11865296,83.979,83.953,11.91142663]
[1773050930292,1.11865296,83.988,83.961,1.17547186]
[1773050930510,1.11865296,83.988,83.953,41.6899932]
[1773050930689,1.11865296,83.986,83.953,41.6899932]
[1773050930890,1.11865296,83.986,83.953,42.86546506]
[1773050931108,11.67607113,83.98,83.953,42.86546506]
[1773050931307,1.11865296,83.979,83.953,11.91142663]
[1773050931511,1.11865296,83.979,83.944,29.7816724]
[1773050931512,1.11865296,83.979,83.945,11.91256179]
[1773050931702,1.11865296,83.979,83.945,41.69396628]
[1773050931908,1.11865296,83.979,83.945,42.86943814]
[1773050932492,1.11865296,83.978,83.945,11.91256179]
[1773050932692,1.11865296,83.959,83.937,11.91369717]
[1773050933004,1.11865296,83.959,83.929,1.17547186]
[1773050933593,1.11865296,83.959,83.93,12.85154299]
[1773050933913,1.11865296,83.959,83.931,1.17547186]
[1773050934413,1.11865296,83.959,83.928,11.91497474]
[1773050934712,1.11865296,83.957,83.928,11.91497474]
[1773050934914,1.11865296,83.957,83.93,11.67607113]
[1773050936091,1.11865296,83.957,83.93,12.85154299]
[1773050937008,1.11865296,83.957,83.931,11.91454885]
[1773050937214,1.11865296,83.957,83.931,41.70092098]
[1773050938213,12.79472409,83.97,83.941,1.17547186]
[1773050938540,1.11865296,83.969,83.941,1.17547186]
[1773050939313,1.11865296,83.967,83.942,11.91298753]
[1773050940020,1.11865296,83.959,83.931,11.91454885]
[1773050940417,1.11865296,83.959,83.931,41.70092098]
[1773050940598,1.11865296,83.959,83.931,42.87639284]
[1773050941028,1.4029761,83.969,83.941,1.17547186]
[1773050941211,1.11865296,83.969,83.942,11.91298753]
[1773050941414,1.11865296,83.969,83.943,1.17547186]
[1773050941596,1.11865296,83.967,83.943,1.17547186]
[1773050941801,1.11865296,83.967,83.942,11.91298753]
[1773050942008,1.11865296,83.977,83.951,1.17547186]
[1773050942719,1.11865296,83.977,83.942,41.69545637]
[1773050942720,1.11865296,83.985,83.96,11.67607113]
[1773050943099,1.11865296,83.985,83.957,1.17547186]
[1773050944121,8.56202097,83.982,83.958,11.91071726]
[1773050944319,8.56202097,83.982,83.96,11.67607113]
[1773050945208,8.56202097,83.982,83.96,11.91043353]
[1773050945816,8.56202097,83.982,83.96,23.58650466]
[1773050946919,7.33103342,83.982,83.961,1.16275161]
[1773050947119,1.51531069,83.999,83.971,1.16275161]
[1773050947722,1.23098755,83.997,83.972,13.07148309]
[1773050948102,1.23098755,84.004,83.973,1.16275161]
[1773050948530,4.35715028,84.02,83.991,1.16275161]
[1773050948707,4.35715028,84.02,83.984,1.16275161]
[1773050948708,11.9027781,84.014,83.984,1.16275161]
[1773050948908,4.35715028,84.01,83.984,1.16275161]
[1773050949428,11.90257239,84.016,83.984,1.16275161]
[1773050949631,11.90257239,84.016,83.986,1.16275161]
[1773050950738,1.23098755,84.013,83.986,1.16275161]
[1773050951632,11.66657759,84.02,83.991,1.16275161]
[1773050951633,11.90218557,84.019,83.991,1.16275161]
[1773050951838,1.23098755,84.02,83.991,1.16275161]
[1773050953234,0.28432314,84.036,83.987,11.90660459]
[1773050953235,11.9027781,84.014,83.987,11.90660459]
[1773050953435,12.89756514,84.0,83.975,1.16275161]
[1773050953617,1.23098755,83.997,83.969,11.90915695]
[1773050953815,12.89756514,83.99,83.969,11.90915695]
[1773050954015,1.23098755,83.997,83.97,1.16275161]
[1773050954212,13.13465007,84.008,83.971,1.16275161]
[1773050954938,11.66657759,84.0,83.971,1.16275161]
[1773050955236,1.23098755,84.002,83.971,1.16275161]
[1773050956149,12.89756514,84.01,83.98,11.66657759]
[1773050956343,1.23098755,84.01,83.981,1.16275161]
[1773050956543,1.23098755,84.009,83.981,1.16275161]
[1773050958236,11.90362822,84.008,83.982,11.90731347]